bitfinex-derivatives/quotes_ETHF0:USTF0_20250604
["timestamp","ask_amount","ask_price","bid_price","bid_amount"]
[1749060126709,1.63364175,2641.1,2641.0,5.1492]
[1749060126909,1.63364175,2641.1,2641.0,5.90614]
[1749060127113,1.63364175,2641.1,2641.0,5.1492]
[1749060128313,1.63364175,2641.1,2641.0,0.5472]
[1749060128516,1.63364175,2641.1,2641.0,5.90614]
[1749060132912,1.63489516,2641.1,2641.0,1.30414]
[1749060133119,1.63489516,2641.1,2641.0,5.1492]
[1749060133311,1.63489516,2641.1,2641.0,5.90614]
[1749060134411,1.63489516,2641.1,2641.0,1.30414]
[1749060134715,1.63489516,2641.1,2641.0,5.90614]
[1749060134915,1.63489516,2641.1,2641.0,5.1492]
[1749060135116,1.63489516,2641.1,2641.0,5.90614]
[1749060135819,2.25999516,2641.1,2641.0,5.90614]
[1749060137420,2.25931607,2641.1,2641.0,5.90614]
[1749060139422,2.25931607,2641.1,2641.0,5.1492]
[1749060139618,2.25931607,2641.1,2641.0,0.5472]
[1749060139823,3.57771607,2641.1,2641.0,0.5472]
[1749060140226,3.64503083,2641.1,2641.0,0.5472]
[1749060141518,3.64503083,2641.1,2641.0,4.33324]
[1749060141519,0.94461083,2641.1,2641.0,4.33324]
[1749060141720,0.94763529,2641.1,2641.0,4.33324]
[1749060145227,0.94763529,2641.1,2641.0,5.60844]
[1749060146122,0.94756075,2641.1,2641.0,5.60844]
[1749060146624,0.06731476,2641.1,2641.0,5.60844]
[1749060147025,3.96458,2641.6,2641.5,0.7568]
[1749060147225,4.08771313,2641.6,2641.5,5.3588]
[1749060148722,0.87991313,2641.6,2641.5,5.3588]
[1749060148920,0.87991313,2641.6,2641.5,6.6573]
[1749060149121,0.87991313,2641.6,2641.5,0.7568]
[1749060149320,0.87991313,2641.6,2641.5,22.8998]
[1749060149522,1.63668313,2641.6,2641.5,22.8998]
[1749060149822,0.87991313,2641.6,2641.5,22.8998]
[1749060150315,0.75673,2641.8,2641.7,0.75674]
[1749060150522,1.63657869,2641.8,2641.7,0.75674]
[1749060150822,0.87984869,2641.8,2641.7,0.75674]
[1749060151023,0.75676,2641.7,2641.6,0.75674]
[1749060151222,0.87984869,2641.7,2641.6,0.75674]
[1749060153520,0.87984869,2641.7,2641.6,3.96454]
[1749060153728,0.87984869,2641.7,2641.6,5.22004]
[1749060154523,0.94716345,2641.7,2641.6,5.22004]
[1749060154723,0.94667815,2641.7,2641.6,0.75674]
[1749060155323,0.94667815,2641.7,2641.6,2.04004]
[1749060155623,0.06731476,2641.7,2641.6,5.24784]
[1749060159022,0.06731476,2641.7,2641.6,3.96454]
[1749060159628,0.06731476,2641.7,2641.6,22.89074]
[1749060159824,0.94595986,2641.7,2641.6,22.89074]
[1749060160431,0.06731476,2641.7,2641.6,22.89074]
[1749060160726,0.06731476,2641.7,2641.6,22.88974]
[1749060161132,0.06731476,2641.7,2641.6,0.75674]
[1749060161325,0.06731476,2641.7,2641.6,5.35474]
[1749060161525,0.06731476,2641.7,2641.6,4.598]
[1749060161731,0.94591813,2641.7,2641.4,0.658]
[1749060161932,0.7568,2641.5,2641.4,18.94982]
[1749060162226,4.84311191,2641.5,2641.4,4.598]
[1749060162526,4.84311191,2641.5,2641.4,5.35483]
[1749060162527,0.87851191,2641.5,2641.4,5.35483]
[1749060162929,1.63531191,2641.5,2641.4,5.35483]
[1749060163125,0.75686,2641.3,2641.2,38.167]
[1749060163324,0.75686,2641.3,2641.2,43.52189]
[1749060163626,1.63537191,2641.3,2641.2,43.52189]
[1749060163826,3.49617191,2641.3,2641.2,38.167]
[1749060164034,6.70397191,2641.3,2641.2,42.765]
[1749060164229,6.70397191,2641.3,2641.2,43.52189]
[1749060165729,6.70397191,2641.3,2641.2,38.92389]
[1749060166033,5.94711191,2641.3,2641.2,43.52189]
[1749060166833,6.70397191,2641.3,2641.2,43.52189]
[1749060167034,5.94711191,2641.3,2641.2,43.52189]
[1749060167435,6.70397191,2641.3,2641.2,43.52189]
[1749060167734,5.94711191,2641.3,2641.2,43.52189]
[1749060167933,5.94733187,2641.3,2641.2,43.52189]
[1749060168635,2.73953187,2641.3,2641.2,43.52189]
[1749060170631,2.80684663,2641.3,2641.2,43.52189]
[1749060170836,3.56370663,2641.3,2641.2,43.52189]
[1749060171037,2.80684663,2641.3,2641.2,43.52189]
[1749060171437,3.56370663,2641.3,2641.2,43.52189]
[1749060171839,6.77150663,2641.3,2641.2,43.52189]
[1749060172338,6.7713517,2641.3,2641.2,42.765]
[1749060173238,6.7713517,2641.3,2641.2,43.52189]
[1749060173435,6.7713841,2641.3,2641.2,43.52189]
[1749060175141,6.7713841,2641.3,2641.2,38.92389]
[1749060175342,6.7713841,2641.3,2641.2,43.52189]
[1749060176740,6.77149863,2641.3,2641.2,43.52189]
[1749060178332,6.77149863,2641.3,2641.2,42.765]
[1749060178543,6.77149863,2641.3,2641.2,43.52189]
[1749060179238,6.77149863,2641.3,2641.2,38.167]
[1749060179438,6.77149863,2641.3,2641.2,60.3]
[1749060179641,6.77149863,2641.3,2641.2,61.05689]
[1749060180344,0.75689,2641.2,2641.1,22.88991]
[1749060180644,3.57764038,2641.2,2641.1,0.75692]
[1749060180840,0.75692,2641.1,2641.0,18.0822]
[1749060181046,2.94593417,2641.1,2641.0,23.43713]
[1749060181344,2.94593417,2641.1,2641.0,8.1743]
[1749060182239,2.94593417,2641.1,2641.0,3.5763]
[1749060182844,2.94593417,2641.1,2641.0,4.33324]
[1749060184149,2.94516641,2641.1,2641.0,4.33324]
[1749060185649,2.94516641,2641.1,2641.0,3.5763]
[1749060185850,3.01248117,2641.1,2641.0,3.5763]
[1749060186253,3.01248117,2641.1,2641.0,4.33324]
[1749060186449,1.70168117,2641.1,2641.0,4.33324]
[1749060186657,0.94476117,2641.1,2641.0,4.33324]
[1749060186956,1.70168117,2641.1,2641.0,4.33324]
[1749060189251,0.94476117,2641.1,2641.0,4.33324]
[1749060190450,1.70168117,2641.1,2641.0,4.33324]
[1749060193053,1.72230172,2641.1,2641.0,4.33324]
[1749060194966,1.72230172,2641.1,2641.0,4.93784]
[1749060199261,1.72230172,2641.1,2641.0,4.1809]
[1749060199462,1.72230172,2641.1,2641.0,3.5763]
[1749060200655,1.72230172,2641.1,2641.0,4.33324]
[1749060201768,1.72230172,2641.1,2641.0,3.5763]
[1749060201769,0.82423476,2641.1,2641.0,3.5763]
[1749060202060,1.71425197,2641.1,2641.0,3.5763]
[1749060202857,5.95733197,2641.1,2640.5,4.595]
[1749060203170,0.75717,2640.2,2640.1,4.595]
[1749060203360,42.44718721,2640.2,2640.1,4.595]
[1749060203873,43.76788721,2640.2,2640.1,4.595]
[1749060206054,43.76358346,2640.2,2640.1,4.595]
[1749060206970,0.75723,2640.0,2639.9,3.03608225]
[1749060207158,4.85074346,2640.0,2639.9,3.03608225]
[1749060207357,4.85074346,2640.0,2639.9,0.00568225]
[1749060210565,4.84820714,2640.0,2639.9,0.00568225]
[1749060210868,4.84820714,2640.0,2639.9,0.76294225]
[1749060211068,0.88317714,2640.0,2639.9,0.76294225]
[1749060211568,0.88317714,2640.0,2639.9,19.50234225]
[1749060212666,0.75719,2640.2,2640.1,0.7572]
[1749060212858,1.64002968,2640.2,2640.1,0.7572]
[1749060213468,0.00568225,2640.4,2640.3,0.75714]
[1749060213659,0.00568225,2640.4,2640.3,22.88414]
[1749060213965,0.00568225,2640.4,2640.3,32.30244]
[1749060214158,0.75697,2640.9,2640.8,0.75697]
[1749060214359,1.64000415,2640.9,2640.8,0.75697]
[1749060214765,0.75697,2640.9,2640.8,1.35977]
[1749060214970,1.64004643,2640.9,2640.8,1.35977]
[1749060215170,1.64004643,2640.9,2640.8,0.6028]
[1749060215471,1.64004643,2640.9,2640.8,1.3598]
[1749060218571,1.64004643,2640.9,2640.8,0.6028]
[1749060218764,0.757,2640.8,2640.7,4.596]
[1749060218964,1.64007643,2640.8,2640.7,4.596]
[1749060219164,0.757,2640.8,2640.7,4.596]
[1749060219467,1.64075587,2640.8,2640.7,4.596]
[1749060221370,1.64075587,2640.8,2640.3,4.59]
[1749060221371,0.75711,2640.4,2640.3,4.59]
[1749060221970,1.64134862,2640.4,2640.3,4.59]
[1749060222468,1.64134862,2640.4,2640.3,5.34714]
[1749060222972,1.64134862,2640.4,2640.3,4.59]
[1749060224171,0.75717,2640.2,2640.1,0.6129]
[1749060224368,4.91652338,2640.2,2640.1,0.6129]
[1749060225464,4.91652338,2640.2,2640.1,1.3701]
[1749060227260,1.70872338,2640.2,2640.1,1.3701]
[1749060228172,1.70925944,2640.2,2640.1,1.3701]
[1749060231272,1.70925944,2640.2,2640.1,0.6129]
[1749060232074,1.70925944,2640.2,2640.1,1.3701]
[1749060232368,0.95208944,2640.2,2640.1,1.3701]
[1749060232568,0.82448476,2640.2,2640.1,1.3701]
[1749060232962,1.70983592,2640.2,2640.1,1.3701]
[1749060233574,1.70984384,2640.2,2640.1,1.3701]
[1749060235276,0.95267384,2640.2,2640.1,1.3701]
[1749060235577,1.2464,2640.9,2640.6,0.75701]
[1749060235774,0.75704,2640.7,2640.6,5.34801]
[1749060237477,0.75701,2640.9,2640.8,0.757]
[1749060238279,0.75703,2640.8,2640.7,0.75701]
[1749060238676,0.75703,2640.7,2640.6,5.34805]
[1749060239780,0.75702,2640.8,2640.7,0.757]
[1749060240580,40.8,2641.0,2640.6,4.591]
[1749060240785,0.75702,2640.8,2640.7,0.757]
[1749060241783,0.75703,2640.7,2640.6,5.34802]
[1749060242382,0.75702,2640.8,2640.7,0.757]
[1749060244876,0.82433476,2640.8,2640.7,0.757]
[1749060246581,0.06731476,2640.8,2640.7,0.757]
[1749060247481,0.06731476,2640.8,2640.7,2.0335]
[1749060247674,0.94761214,2640.8,2640.7,2.0335]
[1749060248780,0.9472227,2640.8,2640.7,2.33179445]
[1749060249785,0.06731476,2640.8,2640.7,2.33179445]
[1749060249986,0.75691,2641.2,2641.1,0.75688]
[1749060250187,3.2078,2641.4,2641.2,0.75689]
[1749060250379,1.63673013,2641.3,2641.2,1.40139]
[1749060250684,0.87987013,2641.3,2641.2,1.40139]
[1749060250987,0.6478,2641.7,2641.2,1.40139]
[1749060250988,3.2078,2642.1,2641.9,0.75667]
[1749060251176,0.75671,2641.9,2641.8,0.7567]
[1749060251375,0.6273,2642.0,2641.9,0.75668]
[1749060251578,1.38396,2642.0,2641.9,0.75668]
[1749060252288,0.75668,2641.9,2641.8,5.3407]
[1749060252580,0.75671,2641.8,2641.7,0.00568225]
[1749060252786,3.96451,2641.8,2641.7,4.58968225]
[1749060252985,3.96451,2641.8,2641.7,0.00568225]
[1749060253582,5.17131,2641.8,2641.7,4.58968225]
[1749060254085,5.17131,2641.8,2641.7,5.34642225]
[1749060254488,5.17131,2641.8,2641.7,4.58968225]
[1749060254679,5.17131,2641.8,2641.7,5.34642225]
[1749060255387,5.17131,2641.8,2641.7,4.58968225]
[1749060256083,5.17131,2641.8,2641.7,5.34642225]
[1749060256289,5.17131,2641.8,2641.7,4.58968225]
[1749060259894,5.23862476,2641.8,2641.7,4.58968225]
[1749060262284,0.06731476,2641.8,2641.7,5.34642225]
[1749060264988,3.2078,2642.3,2642.2,0.7566]
[1749060265289,3.78127,2643.5,2642.2,0.7566]
[1749060265290,3.2078,2642.9,2642.8,0.75643]
[1749060265487,0.87421852,2642.9,2642.8,5.33943]
[1749060266186,0.87421852,2642.9,2642.8,0.75643]
[1749060266392,1.63022897,2642.9,2642.8,5.33941]
[1749060266595,0.87382897,2642.9,2642.8,5.33941]
[1749060266793,0.7564,2642.9,2642.8,4.583]
[1749060266987,3.49016983,2642.9,2642.8,4.583]
[1749060267189,3.49016983,2642.9,2642.8,5.33943]
[1749060268387,2.73376983,2642.9,2642.8,5.33943]
[1749060268594,1.8605,2642.9,2642.8,5.33943]
[1749060268795,2.73365686,2642.9,2642.8,5.33943]
[1749060269895,1.52695686,2642.9,2642.8,5.33943]
[1749060270096,1.52681839,2642.9,2642.8,5.33943]
[1749060270498,0.6538,2642.9,2642.8,5.33943]
[1749060270997,1.52653105,2642.9,2642.8,5.33943]
[1749060271193,0.6538,2642.9,2642.8,5.33943]
[1749060271898,3.2078,2643.2,2643.1,0.75634]
[1749060272090,4.08043698,2643.2,2643.1,0.75634]
[1749060272292,4.08043698,2643.2,2643.1,5.33834]
[1749060272495,0.75636,2643.1,2643.0,0.75635]
[1749060272699,2.05496,2643.1,2643.0,5.33835]
[1749060272898,2.70646,2643.1,2643.0,5.33835]
[1749060273399,1.9501,2643.1,2643.0,5.33835]
[1749060273698,2.70644,2643.1,2643.0,5.33835]
[1749060273900,1.9501,2643.1,2643.0,5.33835]
[1749060274103,2.70644,2643.1,2643.0,5.33835]
[1749060274303,2.82300667,2643.1,2643.0,5.33837]
[1749060274505,3.57936667,2643.1,2643.0,4.582]
[1749060274697,2.82300667,2643.1,2643.0,5.33837]
[1749060274999,1.9501,2643.1,2642.9,0.75638]
[1749060275203,2.77375476,2643.1,2643.0,4.581]
[1749060275497,3.64668982,2643.1,2643.0,5.33737]
[1749060276001,3.64668982,2643.1,2642.5,0.6003]
[1749060276002,7.89034982,2643.1,2642.1,4.581]
[1749060276204,0.7566,2642.2,2642.1,4.581]
[1749060276401,0.7566,2642.2,2642.1,5.33763]
[1749060276604,2.6373,2642.2,2642.1,5.33763]
[1749060276905,3.5102923,2642.2,2642.1,5.33763]
[1749060278605,2.7536923,2642.2,2642.1,5.33763]
[1749060279205,3.5102923,2642.2,2642.1,5.33763]
[1749060279505,3.51098575,2642.2,2642.1,5.33763]
[1749060280901,0.75667,2642.1,2642.0,0.75665]
[1749060281105,0.75667,2642.1,2641.8,38.148]
[1749060281106,2.11988575,2642.1,2641.8,38.148]
[1749060281303,0.75669,2641.9,2641.8,42.725]
[1749060281605,1.63037575,2641.9,2641.8,42.725]
[1749060281805,2.87657575,2641.9,2641.8,42.725]
[1749060281995,2.87657575,2641.9,2641.8,43.48171]
[1749060283702,2.87672125,2641.9,2641.8,43.48171]
[1749060288102,2.00289,2641.9,2641.8,43.48171]
[1749060288307,2.87649544,2641.9,2641.8,43.48171]
[1749060290310,2.9438102,2641.9,2641.8,43.48171]
[1749060292605,0.94070662,2641.9,2641.8,43.48171]
[1749060293708,0.94057005,2641.9,2641.8,43.48171]
[1749060295306,1.69726005,2641.9,2641.8,43.48171]
[1749060295506,0.94057005,2641.9,2641.8,43.48171]
[1749060295707,1.69726005,2641.9,2641.8,43.48171]
[1749060296216,0.94057005,2641.9,2641.8,43.48171]
[1749060296809,0.94057005,2641.9,2641.8,60.98071]
[1749060297208,0.94057531,2641.9,2641.8,60.98071]
[1749060297518,1.69726531,2641.9,2641.8,60.98171]
[1749060297715,1.69726531,2641.9,2641.8,38.90471]
[1749060297919,1.69726531,2641.9,2641.8,60.98171]
[1749060298120,1.69726531,2641.9,2641.8,42.726]
[1749060298418,2.98226531,2641.9,2641.8,42.726]
[1749060298814,2.98226531,2641.9,2641.8,38.148]
[1749060299113,2.98226531,2641.9,2641.8,42.726]
[1749060299516,2.98226531,2641.9,2641.8,38.148]
[1749060299723,0.75671,2641.8,2641.7,0.00568225]
[1749060300027,1.62997055,2641.8,2641.7,0.00568225]
[1749060300326,3.58857055,2641.8,2641.7,4.58368225]
[1749060300525,3.58857055,2641.8,2641.7,0.00568225]
[1749060301024,3.58917743,2641.8,2641.7,0.00568225]
[1749060302428,3.58917743,2641.8,2641.7,0.76242225]
[1749060302613,3.58917743,2641.8,2641.7,0.00568225]
[1749060303218,3.58917743,2641.8,2641.7,0.76242225]
[1749060303415,2.29227743,2641.8,2641.7,0.76242225]
[1749060303828,2.29227743,2641.8,2641.7,1.36222225]
[1749060304335,2.29307074,2641.8,2641.7,1.36222225]
[1749060305625,0.9419755,2641.8,2641.7,1.36222225]
[1749060305819,1.6986855,2641.8,2641.7,1.36222225]
[1749060306018,0.9419755,2641.8,2641.7,1.36222225]
[1749060307033,1.6986855,2641.8,2641.7,1.36222225]
[1749060307327,0.9419755,2641.8,2641.7,1.36222225]
[1749060307720,0.9419755,2641.8,2641.7,2.58432225]
[1749060308723,0.94480537,2641.8,2641.7,2.58432225]
[1749060310029,1.70151537,2641.8,2641.7,2.58432225]
[1749060310429,0.94480537,2641.8,2641.7,2.58432225]
[1749060310824,1.70151537,2641.8,2641.7,2.58432225]
[1749060311133,1.70151537,2641.8,2641.7,0.00568225]
[1749060311437,2.94841537,2641.8,2641.7,0.00568225]
[1749060313027,2.94850255,2641.8,2641.7,0.00568225]
[1749060317037,2.94850255,2641.8,2641.7,0.76242225]
[1749060317332,0.94489255,2641.8,2641.7,0.76242225]
[1749060317534,0.9449992,2641.8,2641.7,0.76242225]
[1749060317736,0.9449992,2641.8,2641.7,5.76242225]
[1749060317929,3.2078,2642.3,2642.2,0.7566]
[1749060318130,0.75645,2642.8,2642.7,0.75646]
[1749060318928,0.75646,2642.7,2642.6,5.33147]
[1749060319632,0.75645,2642.8,2642.7,0.75643]
[1749060320838,44.0078,2642.9,2642.8,0.75643]
[1749060321045,3.2078,2642.9,2642.8,0.75643]
[1749060321335,0.75634,2643.2,2642.7,1.89112]
[1749060321541,0.75634,2643.2,2643.1,0.75631]
[1749060322334,0.75632,2643.2,2643.1,0.75633]
[1749060322533,0.75632,2643.2,2643.1,0.6097]
[1749060322832,0.75632,2643.2,2643.1,1.36604]
[1749060323140,0.7563,2643.3,2643.2,0.7563]
[1749060323341,0.75631,2643.2,2643.1,1.36602]
[1749060323936,0.75634,2643.1,2643.0,0.00568225]
[1749060324238,5.21094,2643.1,2643.0,0.00568225]
[1749060328238,0.75648,2642.6,2642.5,4.574]
[1749060328739,0.75648,2642.6,2642.5,5.33051]
[1749060328942,0.82379476,2642.6,2642.5,5.33051]
[1749060329143,0.06731476,2642.6,2642.5,5.33051]
[1749060330531,0.93810829,2642.6,2642.5,5.33051]
[1749060331834,0.75651,2642.5,2642.4,1.2438]
[1749060332036,0.87079353,2642.5,2642.4,6.57434]
[1749060332341,1.62730353,2642.5,2642.4,6.57434]
[1749060332541,0.87079353,2642.5,2642.4,6.57434]
[1749060334452,0.87079353,2642.5,2642.4,3.24454]
[1749060334642,0.87079353,2642.5,2642.4,25.30654]
[1749060334945,0.76213225,2642.8,2642.4,24.55]
[1749060335145,1.62781544,2642.7,2642.5,1.89129]
[1749060335450,0.87135544,2642.6,2642.5,0.75651]
[1749060336946,0.76212225,2642.8,2642.7,0.75646]
[1749060337147,1.63379031,2642.8,2642.7,0.75646]
[1749060338148,0.75651,2642.6,2642.5,0.75648]
[1749060338351,0.75651,2642.6,2642.5,5.32948]
[1749060338538,1.62817806,2642.6,2642.5,5.32948]
[1749060338738,1.62817806,2642.6,2642.5,0.75648]
[1749060338939,0.75654,2642.4,2642.3,0.00568225]
[1749060339141,3.96434,2642.4,2642.3,4.57868225]
[1749060339351,4.83631337,2642.4,2642.3,4.57868225]
[1749060339541,6.14491337,2642.4,2642.3,4.57868225]
[1749060340047,46.94491337,2642.4,2642.3,4.57868225]
[1749060340241,46.94491337,2642.4,2642.3,0.00568225]
[1749060340650,0.75663,2642.1,2642.0,4.571]
[1749060340949,3.96443,2642.1,2642.0,4.571]
[1749060341248,4.83640337,2642.1,2642.0,5.32766]
[1749060341550,4.07977337,2642.1,2642.0,5.32766]
[1749060341850,0.87197337,2642.1,2642.0,5.32766]
[1749060342148,40.8,2642.4,2642.3,0.75657]
[1749060342343,0.8722691,2642.4,2642.3,0.75657]
[1749060343541,0.8722691,2642.4,2642.1,2.52836]
[1749060343542,1.46132476,2642.5,2642.4,0.75654]
[1749060343744,2.33392438,2642.5,2642.4,0.75654]
[1749060344642,0.75656,2642.4,2642.3,0.75656]
[1749060344945,1.62915962,2642.4,2642.3,0.75656]
[1749060345145,0.87259962,2642.4,2642.3,0.75656]
[1749060348148,1.46134476,2642.5,2642.4,0.75654]
[1749060348349,2.33478263,2642.5,2642.4,0.75654]
[1749060348545,2.33478263,2642.5,2642.4,5.32754]
[1749060348746,0.94075263,2642.5,2642.4,5.32754]
[1749060351645,0.94075263,2642.5,2642.4,6.61184]
[1749060352653,0.94067976,2642.5,2642.4,6.61184]
[1749060354048,0.94275198,2642.5,2642.4,6.61184]
[1749060357452,0.94276323,2642.5,2642.4,6.61184]
[1749060358052,0.00568225,2642.8,2642.7,0.75646]
[1749060358647,0.00568225,2642.8,2642.7,2.01706]
[1749060359248,3.2078,2643.2,2643.1,0.75634]
[1749060359448,3.2078,2643.2,2643.1,5.32734]
[1749060359857,3.96411,2643.2,2643.1,5.32734]
[1749060360061,0.75634,2643.1,2643.0,0.75635]
[1749060360363,5.87632,2643.2,2643.1,0.75634]
[1749060361259,5.12,2643.2,2643.1,0.75634]
[1749060361453,1.9122,2643.2,2643.1,0.75634]
[1749060363656,2.66851,2643.2,2643.1,0.75634]
[1749060363856,1.9122,2643.2,2643.1,0.75634]
[1749060364460,1.97951476,2643.2,2643.1,0.75634]
[1749060364859,2.73582476,2643.2,2643.1,0.75634]
[1749060365359,0.7564,2642.9,2642.8,4.57]
[1749060365656,3.9642,2642.9,2642.8,4.57]
[1749060365862,5.8768,2642.9,2642.8,5.32643]
[1749060366856,5.8768,2642.9,2642.8,4.57]
[1749060367362,5.8768,2642.9,2642.8,5.32643]
[1749060369058,46.6768,2642.9,2642.8,5.32643]
[1749060369761,45.9204,2642.9,2642.8,5.32643]
[1749060369961,3.96416,2643.1,2643.0,0.75634]
[1749060370160,4.83397911,2643.1,2643.0,0.75634]
[1749060370361,45.63397911,2643.1,2643.0,0.75634]
[1749060370662,42.99271911,2643.1,2642.8,4.57]
[1749060370858,0.75648,2642.7,2642.6,0.75643]
[1749060371059,0.75645,2642.8,2642.7,0.75646]
[1749060371257,1.62626911,2642.8,2642.7,0.75646]
[1749060371457,1.47481911,2642.8,2642.7,0.75646]
[1749060372060,4.68261911,2642.8,2642.7,0.75646]
[1749060372366,4.07761911,2642.8,2642.7,0.75646]
[1749060373265,4.07768955,2642.8,2642.7,0.75646]
[1749060373666,4.83411955,2642.8,2642.7,0.75646]
[1749060374161,0.86988955,2642.8,2642.7,0.75646]
[1749060377665,0.605,2643.0,2642.9,0.7564]
[1749060377865,1.47550506,2643.0,2642.9,0.7564]
[1749060378961,1.47575721,2643.0,2642.9,0.7564]
[1749060380263,0.75646,2642.8,2642.7,18.23841]
[1749060380462,1.62721721,2642.8,2642.7,18.23841]
[1749060381162,0.87075721,2642.8,2642.7,18.23841]
[1749060382063,1.2639,2642.9,2642.8,0.75643]
[1749060382268,2.13583337,2642.9,2642.8,0.75643]
[1749060383971,2.89223337,2642.9,2642.8,0.75643]
[1749060384366,0.75643,2642.8,2642.7,18.23843]
[1749060384671,2.88136337,2642.8,2642.7,0.75643]
[1749060384970,6.08916337,2642.8,2642.7,0.75643]
[1749060386462,5.21723,2642.8,2642.7,0.75643]
[1749060386669,6.08967542,2642.8,2642.7,0.75643]
[1749060387060,6.08967542,2642.8,2642.4,2.54294]
[1749060387266,0.75651,2642.6,2642.5,22.80648]
[1749060387469,1.62895542,2642.6,2642.5,5.32548]
[1749060387663,2.27405542,2642.6,2642.5,0.75648]
[1749060387868,2.82924542,2642.6,2642.5,0.75648]
[1749060388267,3.58572542,2642.6,2642.5,0.75648]
[1749060388468,2.82924542,2642.6,2642.5,0.75648]
[1749060388865,0.87244542,2642.6,2642.5,0.75648]
[1749060389571,0.87244542,2642.6,2642.5,3.96428]
[1749060389774,0.87244542,2642.6,2642.5,0.75648]
[1749060391076,0.68811476,2643.0,2642.9,0.7564]
[1749060391271,1.56051125,2643.0,2642.9,0.7564]
[1749060391670,2.31688125,2643.0,2642.9,0.7564]
[1749060391873,0.7564,2642.9,2642.8,5.32542]
[1749060392172,2.94449649,2642.9,2642.8,5.32543]
[1749060392981,2.18809649,2642.9,2642.8,5.32543]
[1749060393174,2.94449649,2642.9,2642.8,5.32543]
[1749060393373,2.18809649,2642.9,2642.8,5.32543]
[1749060393567,2.94449649,2642.9,2642.8,5.32543]
[1749060395473,2.94494491,2642.9,2642.8,5.32543]
[1749060395870,3.01225967,2642.9,2642.8,4.569]
[1749060396171,3.01225967,2642.9,2642.8,5.10860763]
[1749060396376,3.01225967,2642.9,2642.8,4.569]
[1749060396770,3.01225967,2642.9,2642.8,5.32543]
[1749060399376,0.75654,2642.5,2642.4,5.32552]
[1749060399577,1.62938491,2642.5,2642.4,4.569]
[1749060400275,2.83118491,2642.5,2642.4,5.32554]
[1749060400479,1.95834,2642.5,2642.4,5.32554]
[1749060400777,2.83059587,2642.5,2642.4,5.32554]
[1749060402677,2.83059587,2642.5,2642.4,4.569]
[1749060403382,0.7566,2642.3,2642.2,0.75659]
[1749060403584,1.62885587,2642.3,2642.2,0.7566]
[1749060403777,2.95025587,2642.3,2642.2,0.7566]
[1749060404175,2.94915891,2642.3,2642.2,0.7566]
[1749060407087,43.74915891,2642.3,2642.2,0.7566]
[1749060407894,2.94912891,2642.3,2642.2,0.7566]
[1749060408093,1.62772891,2642.3,2642.2,0.7566]
[1749060408389,42.42772891,2642.3,2642.2,0.7566]
[1749060408589,42.4272009,2642.3,2642.2,0.7566]
[1749060408792,1.6272009,2642.3,2642.2,0.7566]
[1749060409294,42.4272009,2642.3,2642.2,0.7566]
[1749060410793,0.7566,2642.2,2642.1,4.567]
[1749060411095,2.2901309,2642.2,2642.1,5.32363]
[1749060412989,2.29004458,2642.2,2642.1,5.32363]
[1749060414085,1.53345699,2642.2,2642.1,5.32363]
[1749060414288,0.87055699,2642.2,2642.1,5.32363]
[1749060414490,0.87055699,2642.2,2642.1,5.93573]
[1749060415097,1.62715699,2642.2,2642.1,5.93573]
[1749060415297,0.87055699,2642.2,2642.1,5.93573]
[1749060416492,1.62715699,2642.2,2642.1,5.93573]
[1749060417596,1.62732051,2642.2,2642.1,5.93573]
[1749060417895,0.86504149,2642.2,2642.1,14.14353]
[1749060418095,0.86504149,2642.2,2642.1,15.35913]
[1749060419698,0.06731476,2642.3,2642.2,0.7566]
[1749060419901,0.06731476,2642.3,2642.2,2.0182]
[1749060420298,0.06731476,2642.3,2642.2,10.3972]
[1749060420500,3.2078,2643.2,2643.1,0.75634]
[1749060420904,3.96411,2643.2,2643.1,0.75634]
[1749060421202,3.2078,2643.2,2643.1,0.75634]
[1749060421698,3.96411,2643.2,2643.1,0.75634]
[1749060422204,3.96411,2643.2,2643.0,0.5982]
[1749060422205,0.75634,2643.1,2643.0,1.35455]
[1749060423209,3.96414,2643.2,2643.1,0.75634]
[1749060423411,0.75634,2643.1,2643.0,1.35454]
[1749060423607,0.00568225,2643.3,2643.2,0.75631]
[1749060425705,0.75634,2643.1,2643.0,7.94134]
[1749060425908,0.75634,2643.1,2643.0,26.0162]
[1749060426515,0.7564,2642.9,2642.8,4.566]
[1749060427503,2.0827,2642.9,2642.8,5.32243]
[1749060427908,1.3263,2642.9,2642.8,5.32243]
[1749060428110,2.0827,2642.9,2642.8,5.32243]
[1749060429523,1.8911,2642.8,2642.2,2.53659]
[1749060429706,0.6404,2642.8,2642.7,0.75646]
[1749060430110,1.39683,2642.8,2642.7,0.75646]
[1749060430313,0.6404,2642.8,2642.7,0.75646]
[1749060430715,1.39683,2642.8,2642.7,0.75646]
[1749060431013,0.6404,2642.8,2642.7,0.75646]
[1749060431611,0.75642,2642.9,2642.8,0.75643]
[1749060431812,0.75645,2642.8,2642.7,0.75645]
[1749060432019,0.75646,2642.7,2642.6,0.75646]
[1749060432220,1.62218376,2642.7,2642.6,0.75646]
[1749060433621,1.62162846,2642.7,2642.6,0.75646]
[1749060434316,0.75648,2642.6,2642.5,4.566]
[1749060434521,0.86508206,2642.6,2642.5,4.566]
[1749060434719,1.62156206,2642.6,2642.5,4.566]
[1749060435418,0.86508206,2642.6,2642.5,5.32251]
[1749060435618,1.62156206,2642.6,2642.5,5.32251]
[1749060435822,0.86508206,2642.6,2642.5,5.32251]
[1749060436121,0.75659,2642.3,2642.2,5.31957]
[1749060436621,0.75659,2642.3,2641.9,2.54041]
[1749060436622,0.75663,2642.1,2642.0,5.31963]
[1749060436816,0.75663,2642.1,2642.0,5.31966]
[1749060436817,1.62171206,2642.1,2642.0,5.31966]
[1749060437118,0.75668,2641.9,2641.8,0.00568225]
[1749060437312,4.07288206,2642.1,2641.4,3.2078]
[1749060437313,0.7568,2641.5,2641.4,3.2078]
[1749060437514,1.62188206,2641.5,2641.4,3.96463]
[1749060437715,1.62113131,2641.5,2641.4,3.96463]
[1749060437915,1.62113131,2641.5,2641.4,3.2078]